fUST/lending_fUST_20240216
["ID","MTS","AMOUNT","RATE_DAILY","PERIOD"]
[314154978,1708029039890,-621.79972846,0.00024896,2]
[314154979,1708029039900,-621.79972846,0.00024896,2]
[314154980,1708029039910,-621.79972846,0.00024896,2]
[314154981,1708029039920,-621.79972846,0.00024896,2]
[314154982,1708029039931,-621.79972846,0.00024896,2]
[314154983,1708029039941,-621.79972846,0.00024896,2]
[314154984,1708029039951,-621.79972846,0.00024896,2]
[314154985,1708029039963,-621.79972846,0.00024896,2]
[314154986,1708029039973,-621.79972846,0.00024896,2]
[314154987,1708029039984,-621.79972846,0.00024896,2]
[314154988,1708029039993,-621.79972846,0.00024896,2]
[314154989,1708029040003,-621.79972846,0.00024896,2]
[314154990,1708029040012,-621.79972846,0.00024896,2]
[314154991,1708029040020,-621.79972846,0.00024896,2]
[314154992,1708029040029,-621.79972846,0.00024896,2]
[314154993,1708029040038,-621.79972846,0.00024896,2]
[314154994,1708029040047,-621.79972846,0.00024896,2]
[314154995,1708029040056,-621.79972846,0.00024896,2]
[314154996,1708029040066,-621.79972846,0.00024896,2]
[314154997,1708029040075,-621.79972846,0.00024896,2]
[314154998,1708029040084,-621.79972846,0.00024896,2]
[314154999,1708029040093,-621.79972846,0.00024896,2]
[314155000,1708029040109,-621.79972846,0.00024896,2]
[314155001,1708029040118,-621.79972846,0.00024896,2]
[314155002,1708029040128,-621.79972846,0.00024896,2]
[314155003,1708029040139,-621.79972846,0.00024896,2]
[314155004,1708029040149,-621.79972846,0.00024896,2]
[314155005,1708029040158,-621.79972846,0.00024896,2]
[314155006,1708029040167,-621.79972846,0.00024896,2]
[314155007,1708029040177,-621.79972846,0.00024896,2]
[314155008,1708029040259,-621.79972846,0.00024896,2]
[314155009,1708029040270,-621.79972846,0.00024896,2]
[314155010,1708029040280,-621.79972846,0.00024896,2]
[314155011,1708029040290,-621.79972846,0.00024896,2]
[314155012,1708029040299,-621.79972846,0.00024896,2]
[314155013,1708029040308,-621.79972846,0.00024896,2]
[314155014,1708029040318,-621.79972846,0.00024896,2]
[314155015,1708029040327,-621.79972846,0.00024896,2]
[314155016,1708029040337,-621.79972846,0.00024896,2]
[314155017,1708029040346,-621.79972846,0.00024896,2]
[314155018,1708029040356,-621.79972846,0.00024896,2]
[314155019,1708029040366,-621.79972846,0.00024896,2]
[314155020,1708029040375,-621.79972846,0.00024896,2]
[314155021,1708029040384,-621.79972846,0.00024896,2]
[314155022,1708029040393,-621.79972846,0.00024896,2]
[314155023,1708029040403,-621.79972846,0.00024896,2]
[314155024,1708029040412,-621.79972846,0.00024896,2]
[314155025,1708029040421,-621.79972846,0.00024896,2]
[314155026,1708029040430,-712.10385503,0.00024897,3]
[314155027,1708029040439,-76349.06884246,0.00024897,2]
[314155041,1708029045114,-500.0,0.00024896,2]
[314155042,1708029045125,-500.0,0.00024896,2]
[314155043,1708029045134,-433.68551597,0.00024896,2]
[314155078,1708029046470,-41.96416439,0.00024896,2]
[314155079,1708029046479,-458.03583561,0.00024896,2]
[314155709,1708030241945,-186.16413673,0.00021585,2]
[314155711,1708030241954,-169.725628,0.00021685,2]
[314155713,1708030241964,-161.5894657,0.00021805,2]
[314155715,1708030241973,-627.27822759,0.00021905,2]
[314155717,1708030241981,-859.88112471,0.00021959,2]
[314157715,1708030323082,-175.0,0.00019859,2]
[314157749,1708031383914,24900.0,0.00019165,2]
[314157917,1708031433104,-329.794548,0.00019224,2]
[314157918,1708031433114,-1304.04628181,0.00019858,2]
[314157919,1708031433124,-1392.0971896,0.00019859,2]
[314157920,1708031433133,-786.0289051,0.00019927,2]
[314157921,1708031433142,-159.767966,0.00019993,2]
[314157923,1708031433152,-18557.6253368,0.00020004,2]
[314157925,1708031433161,-200.0,0.00020403,2]
[314157927,1708031433170,-200.0,0.00020403,2]
[314157929,1708031433179,-163.55377005,0.00020747,2]
[314157931,1708031433188,-150.67095252,0.00020926,2]
[314157933,1708031433198,-175.19728346,0.00021,2]
[314157935,1708031433207,-1297.55402049,0.00021011,3]
[314157981,1708031437830,-672.48288052,0.00021011,3]
[314157983,1708031437843,-5904.45756012,0.00021011,3]
[314157985,1708031437855,-6292.17553887,0.00021011,3]
[314157986,1708031437866,-3296.99467808,0.00021011,3]
[314157989,1708031437878,-4885.36552173,0.00021011,3]
[314157992,1708031437905,-3181.87849631,0.00021011,3]
[314158063,1708031441120,-441.32130388,0.00021011,3]
[314158065,1708031441130,-3570.70847926,0.00021021,2]
[314158167,1708031445849,-9837.97,0.00021016,3]
[314158168,1708031445859,-3050.97069034,0.00021021,2]
[314158169,1708031522570,1122.95362545,0.00018916,2]
[314158172,1708032124216,748.6357503,0.00018916,2]
[314158175,1708032493969,-4396.0,0.00019397,2]
[314158222,1708032632037,-364.19083383,0.00019397,2]
[314158224,1708032632048,-2172.43794909,0.00019397,2]
[314158341,1708032638036,-4619.13296242,0.00019397,2]
[314158343,1708032638048,-6434.63447827,0.00019397,2]
[314158345,1708032638060,-6913.60377639,0.00019397,2]
[314158347,1708032638069,-548.86844915,0.00019513,2]
[314158349,1708032638078,-601.97785253,0.00019613,2]
[314158351,1708032638089,-163.55377005,0.00019613,2]
[314158353,1708032638098,-164.897274,0.0001964,2]
[314158355,1708032638108,-169.725628,0.00019713,2]
[314158357,1708032638121,-200.0,0.00020391,2]
[314158360,1708032638129,-200.0,0.00020391,2]
[314158362,1708032638138,-186.16413673,0.00020879,2]
[314158364,1708032638148,-10951.97,0.00021011,3]
[314158366,1708032638158,-9126.64,0.00021011,3]
[314158368,1708032638166,-416.56914128,0.00021016,3]
[314161070,1708032725419,694.19279323,0.00018911,2]
[314161094,1708033326807,521.12852882,0.00018911,2]
[314161099,1708033703764,164.897274,0.00019111,2]
[314161100,1708033831129,1689.7532898,0.00019104,2]
[314161152,1708033832269,-155.09305583,0.00019949,2]
[314161154,1708033832279,-480.25989305,0.0001995,2]
[314161156,1708033832287,-152.194762,0.0002,2]
[314161158,1708033832296,-1324.19406344,0.00020024,2]
[314161161,1708033832312,-4479.68727357,0.00020024,2]
[314161944,1708033840124,-1284.625,0.00020024,2]
[314161946,1708033840135,-1030.4,0.00020024,2]
[314162068,1708033841620,-297.36586592,0.00020024,2]
[314162070,1708033841632,-1397.23884792,0.00020024,2]
[314162225,1708033843211,-15944.80610814,0.00020024,2]
[314162495,1708033846328,-155.09150399,0.00020023,2]
[314162497,1708033846337,-4719.7526292,0.00020024,2]
[314162918,1708033927993,520.9381511,0.000189,2]
[314162926,1708034188691,338.604321,0.00019187,2]
[314162927,1708034352610,951.4454003,0.00019152,2]
[314162928,1708034529507,347.29210073,0.000189,2]
[314162929,1708034588149,1095.5264036,0.00019088,2]
[314162934,1708034649285,169.30216,0.00019148,2]
[314162935,1708034710030,24900.0,0.00019148,2]
[314163019,1708035032411,-1282.3333354,0.00019301,2]
[314163021,1708035032420,-169.725628,0.00019508,2]
[314163023,1708035032429,-22817.20714501,0.00020023,2]
[314163024,1708035032438,-19521.93021181,0.00020024,2]
[314163026,1708035032447,-151.0,0.00020273,2]
[314163029,1708035032456,-156.5002996,0.000203,2]
[314163033,1708035032465,-151.189624,0.00020303,2]
[314163035,1708035032475,-151.0,0.00020303,2]
[314163038,1708035032485,-151.0,0.00020313,2]
[314163042,1708035032495,-151.0,0.00020313,2]
[314163044,1708035032504,-151.0,0.00020323,2]
[314163046,1708035032513,-151.0,0.00020323,2]
[314163048,1708035032522,-200.0,0.00020422,2]
[314163050,1708035032531,-200.0,0.00020422,2]
[314163052,1708035032540,-200.230317,0.000205,2]
[314163054,1708035032549,-399.3392311,0.000205,2]
[314163056,1708035032558,-153.0,0.000205,2]
[314163058,1708035032567,-153.0,0.000205,2]
[314163060,1708035032576,-200.230317,0.000205,2]
[314163062,1708035032585,-153.0,0.000205,2]
[314163064,1708035032594,-200.230317,0.000205,2]
[314163066,1708035032604,-306.0,0.000205,2]
[314163068,1708035032614,-407.4416141,0.00020548,2]
[314163070,1708035032623,-154.2707481,0.00020548,2]
[314163072,1708035032632,-155.5222135,0.00020548,2]
[314163074,1708035032641,-153.0,0.00020678,2]
[314163076,1708035032650,-153.0,0.00020678,2]
[314163078,1708035032659,-153.0,0.00020678,2]
[314163080,1708035032668,-154.90705577,0.00020699,2]
[314163082,1708035032677,-400.460634,0.000207,2]
[314163084,1708035032687,-159.55714109,0.00020799,2]
[314163085,1708035032696,-168.39119465,0.00020921,2]
[314163087,1708035032705,-151.0,0.00020991,2]
[314163089,1708035032714,-151.0,0.00021001,2]
[314163091,1708035032723,-151.0,0.00021001,2]
[314163092,1708035032732,-151.0,0.00021001,2]
[314163094,1708035032741,-160.377103,0.00021011,2]
[314163096,1708035032752,-151.0,0.00021011,2]
[314163098,1708035032761,-151.0,0.00021011,2]
[314163100,1708035032770,-151.0,0.00021011,2]
[314163102,1708035032779,-151.0,0.00021011,2]
[314163104,1708035032789,-154.519457,0.00021011,2]
[314163106,1708035032798,-18846.12,0.00021011,3]
[314163108,1708035032807,-168.00494306,0.00021019,2]
[314163110,1708035032817,-200.21932371,0.0002102,2]
[314163112,1708035032827,-3398.72533392,0.00021021,2]
[314163169,1708035038413,-5155.4,0.00021011,3]
[314163185,1708035041687,-4774.24475494,0.00021011,3]
[314163211,1708035043440,-616.38,0.00021011,3]
[314163212,1708035043452,-3818.0,0.00021011,3]
[314163232,1708035047954,-1341.07524506,0.00021011,3]
[314163233,1708035047963,-10627.96583631,0.00021021,2]
[314163235,1708035130926,376.17477942,0.00018921,2]
[314163237,1708035732447,250.78318628,0.00018921,2]
[314163264,1708035937624,169.725628,0.00019178,2]
[314163284,1708036232537,-843.0824673,0.00019259,2]
[314163286,1708036232547,-72.75567146,0.00019378,2]
[314163289,1708036232558,-1111.22998894,0.00019378,2]
[314163291,1708036232567,-162.16201987,0.00019556,2]
[314163293,1708036232578,-7.14014013,0.00019556,2]
[314163295,1708036232587,-4576.77989287,0.00019903,2]
[314163298,1708036232599,-1825.2202633,0.00019903,2]
[314163384,1708036238590,-18497.99984383,0.00019903,2]
[314163387,1708036238599,-420.22740641,0.000202,2]
[314163389,1708036238608,-200.0,0.000203,2]
[314163391,1708036238617,-200.0,0.000203,2]
[314163393,1708036238626,-18598.21,0.0002037,3]
[314163395,1708036238635,-81.43803511,0.0002037,3]
[314163397,1708036238647,-5420.99253873,0.0002037,3]
[314163399,1708036238658,-340.80038775,0.0002037,3]
[314163772,1708036242391,-2662.5093318,0.0002037,3]
[314164250,1708036246634,-4000.0,0.0002037,3]
[314165672,1708036333737,282.93145971,0.000189,2]
[314165678,1708036903817,1101.415,0.00033,120]
[314165679,1708036935084,188.62097314,0.000189,2]
[314165764,1708037437898,-2070.28,0.00020145,2]
[314165766,1708037437910,-10581.85205145,0.00020145,2]
[314165771,1708037437953,-1000.0,0.00020145,2]
[314165985,1708037441101,-11247.86794855,0.00020145,2]
[314165987,1708037441110,-367.6989806,0.00020526,2]
[314165989,1708037441119,-200.0,0.00020626,2]
[314165991,1708037441128,-200.0,0.00020626,2]
[314165992,1708037441137,-201.816609,0.00020967,2]
[314165993,1708037441146,-28658.23299563,0.00021021,2]
[314166040,1708037442748,-693.39666454,0.00021021,2]
[314166042,1708037442758,-151.0,0.00021021,2]
[314166044,1708037442767,-880.92324805,0.00021293,2]
[314166046,1708037442776,-306.0,0.000213,2]
[314166048,1708037442786,-153.0,0.000213,2]
[314166050,1708037442795,-451.7821035,0.000213,2]
[314166052,1708037442804,-579.0,0.000215,2]
[314166054,1708037442813,-397.5934704,0.000221,2]
[314166056,1708037442823,-200.230317,0.000221,2]
[314166058,1708037442832,-9734.73689916,0.000222,2]
[314166061,1708037442842,-151.0,0.000222,2]
[314166064,1708037442852,-151.545041,0.00022318,2]
[314166066,1708037442860,-151.0,0.00022318,2]
[314166068,1708037442870,-151.0,0.00022318,2]
[314166070,1708037442879,-151.0,0.00022328,2]
[314166072,1708037442888,-151.0,0.00022328,2]
[314166074,1708037442898,-633.0461624,0.00022358,2]
[314166076,1708037442908,-1715.52887952,0.0002237,3]
[314166078,1708037442920,-10558.93112048,0.0002237,3]
[314166080,1708037442929,-5638.74042952,0.0002238,3]
[314166112,1708037445780,-1396.54000046,0.0002238,3]
[314166114,1708037445791,-1157.49145566,0.0002238,3]
[314166144,1708037884805,50000.0,0.0002,2]
[314166181,1708038631929,-1698.88920731,0.00020065,2]
[314166188,1708038631988,-23201.11079269,0.00020065,2]
[314166189,1708038631998,-186.16413673,0.00020123,2]
[314166190,1708038632007,-934.28512979,0.00020123,2]
[314166191,1708038632017,-344.77777665,0.0002027,2]
[314166192,1708038632026,-1715.8749224,0.00020355,2]
[314166193,1708038632035,-200.1754723,0.00020456,2]
[314166194,1708038632045,-200.0,0.00020465,2]
[314166195,1708038632054,-200.0,0.00020465,2]
[314166196,1708038632063,-642.559858,0.00020541,2]
[314166197,1708038632072,-1456.8751199,0.00020616,2]
[314166198,1708038632082,-169.313643,0.00020631,2]
[314166199,1708038632091,-8581.21,0.0002098,3]
[314166200,1708038632100,-14694.12,0.0002099,3]
[314166201,1708038632110,-12245.1,0.0002099,3]
[314166202,1708038632120,-36606.30715657,0.00021,2]
[314166242,1708038637970,-14179.91072347,0.00021,2]
[314166243,1708038637980,-15446.81,0.00021917,2]
[314166244,1708038637989,-1487.6,0.00021917,2]
[314166246,1708038637998,-500.0,0.00021917,2]
[314166248,1708038638008,-14999.12,0.00021917,2]
[314166249,1708038638018,-24609.12,0.00021917,2]
[314166250,1708038638028,-862.87,0.00021917,2]
[314166252,1708038638037,-10011.04675973,0.00022,2]
[314166254,1708038638047,-579.0,0.00022,2]
[314166255,1708038638056,-1052.63370349,0.00022022,2]
[314166256,1708038638065,-3253.37126141,0.00022022,2]
[314166257,1708038638074,-459.889157,0.00022077,2]
[314166258,1708038638083,-459.889157,0.00022077,2]
[314166259,1708038638092,-396.931354,0.00022077,2]
[314166260,1708038638100,-396.931354,0.00022077,2]
[314166261,1708038638109,-1052.63370347,0.00022077,2]
[314166262,1708038638118,-500.0,0.000221,2]
[314166263,1708038638127,-301.58992803,0.000221,2]
[314166264,1708038638136,-500.0,0.000221,2]
[314166265,1708038638145,-500.0,0.000221,2]
[314166266,1708038638154,-500.0,0.000221,2]
[314166267,1708038638164,-500.0,0.000221,2]
[314166268,1708038638173,-500.0,0.000221,2]
[314166269,1708038638269,-500.0,0.000221,2]
[314166270,1708038638279,-500.0,0.000221,2]
[314166271,1708038638288,-500.0,0.000221,2]
[314166272,1708038638298,-500.0,0.000221,2]
[314166273,1708038638308,-500.0,0.000221,2]
[314166274,1708038638316,-500.0,0.000221,2]
[314166275,1708038638326,-500.0,0.000221,2]
[314166276,1708038638335,-500.0,0.000221,2]
[314166277,1708038638344,-500.0,0.000221,2]
[314166278,1708038638353,-500.0,0.000221,2]
[314166279,1708038638362,-521.27239921,0.000221,2]
[314166280,1708038638375,-500.0,0.000221,2]
[314166281,1708038638386,-500.0,0.000221,2]
[314166282,1708038638395,-500.0,0.000221,2]
[314166283,1708038638404,-500.0,0.000221,2]
[314166284,1708038638414,-500.0,0.000221,2]
[314166285,1708038638424,-500.0,0.000221,2]
[314166286,1708038638435,-500.0,0.000221,2]
[314166287,1708038638445,-500.0,0.000221,2]
[314166288,1708038638455,-500.0,0.000221,2]
[314166289,1708038638465,-500.0,0.000221,2]
[314166290,1708038638479,-500.0,0.000221,2]
[314166291,1708038638488,-500.0,0.000221,2]
[314166292,1708038638498,-500.0,0.000221,2]
[314166293,1708038638506,-500.0,0.000221,2]
[314166294,1708038638514,-500.0,0.000221,2]
[314166295,1708038638523,-500.0,0.000221,2]
[314166296,1708038638533,-500.0,0.000221,2]
[314166297,1708038638543,-500.0,0.000221,2]
[314166298,1708038638553,-500.0,0.000221,2]
[314166299,1708038638563,-500.0,0.000221,2]
[314166300,1708038638572,-346.85719144,0.000221,2]
[314166301,1708038638582,-500.0,0.000221,2]
[314166302,1708038638591,-500.0,0.000221,2]
[314166303,1708038638600,-486.14153652,0.000221,2]
[314166304,1708038638609,-500.0,0.000221,2]
[314166305,1708038638619,-500.0,0.000221,2]
[314166306,1708038638628,-500.0,0.000221,2]
[314166307,1708038638637,-500.0,0.000221,2]
[314166308,1708038638645,-500.0,0.000221,2]
[314166309,1708038638655,-500.0,0.000221,2]
[314166310,1708038638664,-500.0,0.000221,2]
[314166311,1708038638675,-500.0,0.000221,2]
[314166312,1708038638686,-500.0,0.000221,2]
[314166313,1708038638695,-500.0,0.000221,2]
[314166314,1708038638705,-500.0,0.000221,2]
[314166315,1708038638714,-500.0,0.000221,2]
[314166316,1708038638728,-394.51890206,0.000221,2]
[314166317,1708038638744,-500.0,0.000221,2]
[314166318,1708038638754,-500.0,0.000221,2]
[314166319,1708038638763,-500.0,0.000221,2]
[314166320,1708038638773,-500.0,0.000221,2]
[314166321,1708038638783,-500.0,0.000221,2]
[314166322,1708038638793,-500.0,0.000221,2]
[314166323,1708038638803,-500.0,0.000221,2]
[314166324,1708038638812,-500.0,0.000221,2]
[314166325,1708038638822,-500.0,0.000221,2]
[314166326,1708038638832,-500.0,0.000221,2]
[314166327,1708038638845,-500.0,0.000221,2]
[314166328,1708038638855,-500.0,0.000221,2]
[314166329,1708038638865,-500.0,0.000221,2]
[314166330,1708038638875,-500.0,0.000221,2]
[314166331,1708038638885,-500.0,0.000221,2]
[314166332,1708038638894,-500.0,0.000221,2]
[314166333,1708038638904,-476.67961993,0.000221,2]
[314166334,1708038638914,-500.0,0.000221,2]
[314166335,1708038638923,-500.0,0.000221,2]
[314166336,1708038638932,-500.0,0.000221,2]
[314166337,1708038638942,-500.0,0.000221,2]
[314166338,1708038638952,-500.0,0.000221,2]
[314166339,1708038638961,-500.0,0.000221,2]
[314166340,1708038638972,-500.0,0.000221,2]
[314166341,1708038638982,-500.0,0.000221,2]
[314166342,1708038638992,-500.0,0.000221,2]
[314166343,1708038639001,-500.0,0.000221,2]
[314166344,1708038639010,-500.0,0.000221,2]
[314166345,1708038639019,-500.0,0.000221,2]
[314166346,1708038639028,-500.0,0.000221,2]
[314166347,1708038639037,-500.0,0.000221,2]
[314166348,1708038639046,-500.0,0.000221,2]
[314166349,1708038639055,-500.0,0.000221,2]
[314166350,1708038639064,-500.0,0.000221,2]
[314166351,1708038639074,-500.0,0.000221,2]
[314166352,1708038639083,-500.0,0.000221,2]
[314166353,1708038639092,-500.0,0.000221,2]
[314166354,1708038639101,-500.0,0.000221,2]
[314166355,1708038639110,-500.0,0.000221,2]
[314166356,1708038639118,-500.0,0.000221,2]
[314166357,1708038639127,-500.0,0.000221,2]
[314166358,1708038639136,-500.0,0.000221,2]
[314166359,1708038639145,-500.0,0.000221,2]
[314166360,1708038639154,-553.86325545,0.00022101,2]
[314166361,1708038639163,-500.0,0.00022101,2]
[314166362,1708038639172,-4188.64,0.00022101,2]
[314166363,1708038639182,-3233.09,0.00022101,2]
[314166364,1708038639191,-500.0,0.00022101,2]
[314166365,1708038639200,-1000.0,0.00022101,2]
[314166366,1708038639210,-500.0,0.00022101,2]
[314166367,1708038639219,-500.0,0.00022101,2]
[314166368,1708038639230,-500.0,0.00022101,2]
[314166369,1708038639240,-582.68564277,0.00022101,2]
[314166370,1708038639249,-500.0,0.00022101,2]
[314166371,1708038639258,-500.0,0.00022101,2]
[314166372,1708038639268,-500.0,0.00022101,2]
[314166373,1708038639276,-638.34637956,0.00022101,2]
[314166374,1708038639285,-500.0,0.00022101,2]
[314166375,1708038639293,-3045.71,0.00022101,2]
[314166376,1708038639302,-500.0,0.00022101,2]
[314166377,1708038639313,-500.0,0.00022101,2]
[314166378,1708038639322,-556.41,0.00022101,2]
[314166379,1708038639331,-547.39344744,0.00022101,2]
[314166380,1708038639340,-500.0,0.00022101,2]
[314166381,1708038639349,-507.50151569,0.00022101,2]
[314166382,1708038639359,-500.0,0.00022101,2]
[314166383,1708038639368,-18609.15,0.00022101,2]
[314166384,1708038639378,-511.75666933,0.00022101,2]
[314166385,1708038639387,-935.84,0.00022101,2]
[314166386,1708038639396,-500.0,0.00022101,2]
[314166387,1708038639405,-505.73434112,0.00022101,2]
[314166388,1708038639415,-500.0,0.00022101,2]
[314166389,1708038639424,-500.0,0.00022101,2]
[314166390,1708038639433,-500.0,0.00022101,2]
[314166391,1708038639499,-506.84728892,0.00022101,2]
[314166392,1708038639509,-16468.03,0.00022101,2]
[314166393,1708038639521,-500.0,0.00022101,2]
[314166394,1708038639531,-500.0,0.00022101,2]
[314166395,1708038639541,-796.71,0.00022101,2]
[314166396,1708038639551,-250.0,0.0002211,2]
[314166397,1708038639560,-500.0,0.00022111,2]
[314166398,1708038639570,-1967.44,0.00022111,2]
[314166399,1708038639580,-500.0,0.00022111,2]
[314166400,1708038639590,-500.0,0.00022111,2]
[314166401,1708038639600,-506.44463582,0.00022111,2]
[314166402,1708038639609,-500.0,0.00022111,2]
[314166403,1708038639619,-2147.48,0.00022111,2]
[314166404,1708038639629,-719.02,0.00022111,2]
[314166405,1708038639638,-500.0,0.00022111,2]
[314166406,1708038639649,-557.13823248,0.00022111,2]
[314166407,1708038639659,-512.11252895,0.00022111,2]
[314166408,1708038639668,-1478.7,0.00022111,2]
[314166409,1708038639678,-500.0,0.00022111,2]
[314166410,1708038639688,-500.0,0.00022111,2]
[314166411,1708038639699,-500.0,0.00022111,2]
[314166412,1708038639708,-500.0,0.00022111,2]
[314166413,1708038639718,-500.0,0.00022111,2]
[314166414,1708038639728,-3326.07,0.00022111,2]
[314166415,1708038639737,-507.21096205,0.00022111,2]
[314166416,1708038639747,-437.52618809,0.00022111,2]
[314166417,1708038639756,-500.0,0.00022111,2]
[314166418,1708038639766,-375.44487099,0.00022111,2]
[314166419,1708038639775,-500.0,0.00022111,2]
[314166420,1708038639784,-500.0,0.00022111,2]
[314166421,1708038639796,-626.21,0.00022111,2]
[314166422,1708038639805,-328.32247603,0.00022111,2]
[314166423,1708038639814,-500.0,0.00022111,2]
[314166424,1708038639824,-500.0,0.00022111,2]
[314166425,1708038639833,-509.43438541,0.00022111,2]
[314166426,1708038639846,-500.0,0.00022111,2]
[314166427,1708038639856,-500.0,0.00022111,2]
[314166428,1708038639865,-500.0,0.00022111,2]
[314166429,1708038639874,-260.37284919,0.00022111,2]
[314166430,1708038639885,-504.12580923,0.00022111,2]
[314166431,1708038639894,-500.0,0.00022111,2]
[314166432,1708038639903,-2823.76,0.00022111,2]
[314166433,1708038639912,-516.26871262,0.00022111,2]
[314166434,1708038639922,-500.0,0.00022111,2]
[314166435,1708038639932,-500.0,0.00022111,2]
[314166436,1708038639941,-516.39323085,0.00022111,2]
[314166437,1708038639950,-500.0,0.00022111,2]
[314166438,1708038639958,-500.0,0.00022111,2]
[314166439,1708038639967,-500.0,0.00022111,2]
[314166440,1708038639977,-500.0,0.00022111,2]
[314166441,1708038639986,-500.0,0.00022111,2]
[314166442,1708038639995,-505.49748624,0.00022111,2]
[314166443,1708038640005,-501.76829055,0.00022111,2]
[314166444,1708038640013,-500.0,0.00022111,2]
[314166445,1708038640022,-500.0,0.00022111,2]
[314166446,1708038640032,-500.0,0.00022111,2]
[314166447,1708038640041,-500.0,0.00022111,2]
[314166448,1708038640050,-151.0,0.00022121,2]
[314166449,1708038640060,-151.0,0.00022121,2]
[314166450,1708038640068,-151.0,0.00022121,2]
[314166451,1708038640077,-151.0,0.00022121,2]
[314166452,1708038640086,-151.0,0.00022121,2]
[314166453,1708038640096,-151.0,0.00022121,2]
[314166454,1708038640105,-281.213023,0.00022121,2]
[314166455,1708038640114,-151.0,0.00022121,2]
[314166456,1708038640123,-151.0,0.00022121,2]
[314166457,1708038640132,-151.0,0.00022121,2]
[314166458,1708038640142,-151.0,0.00022121,2]
[314166459,1708038640151,-151.0,0.00022121,2]
[314166461,1708038640160,-151.0,0.00022121,2]
[314166464,1708038640169,-236.331289,0.00022121,2]
[314166465,1708038640178,-459.889157,0.00022121,2]
[314166467,1708038640187,-459.889157,0.00022121,2]
[314166469,1708038640196,-459.889157,0.00022121,2]
[314166471,1708038640205,-459.889157,0.00022121,2]
[314166472,1708038640214,-459.889157,0.00022121,2]
[314166474,1708038640226,-459.889157,0.00022121,2]
[314166475,1708038640234,-459.889157,0.00022121,2]
[314166476,1708038640243,-459.889157,0.00022121,2]
[314166477,1708038640252,-459.889157,0.00022121,2]
[314166478,1708038640261,-459.889157,0.00022121,2]
[314166479,1708038640271,-459.889157,0.00022121,2]
[314166480,1708038640280,-459.889157,0.00022121,2]
[314166481,1708038640289,-459.889157,0.00022121,2]
[314166482,1708038640300,-459.889157,0.00022121,2]
[314166483,1708038640309,-459.889157,0.00022121,2]
[314166484,1708038640319,-459.889157,0.00022121,2]
[314166485,1708038640329,-459.889157,0.00022121,2]
[314166486,1708038640339,-459.88915455,0.00022121,2]
[314166487,1708038640348,-396.931354,0.00022121,2]
[314166488,1708038640358,-396.931354,0.00022121,2]
[314166489,1708038640368,-396.931354,0.00022121,2]
[314166490,1708038640377,-396.931354,0.00022121,2]
[314166491,1708038640387,-396.931354,0.00022121,2]
[314166492,1708038640396,-396.931354,0.00022121,2]
[314166493,1708038640405,-396.931354,0.00022121,2]
[314166494,1708038640415,-396.931354,0.00022121,2]
[314166495,1708038640424,-396.931354,0.00022121,2]
[314166496,1708038640433,-396.931354,0.00022121,2]
[314166497,1708038640441,-396.931354,0.00022121,2]
[314166498,1708038640450,-396.931354,0.00022121,2]
[314166499,1708038640460,-396.931354,0.00022121,2]
[314166500,1708038640469,-396.931354,0.00022121,2]
[314166501,1708038640479,-396.931354,0.00022121,2]
[314166502,1708038640488,-396.931354,0.00022121,2]
[314166503,1708038640497,-396.931354,0.00022121,2]